fUSD/lending_fUSD_20250222
["ID","MTS","AMOUNT","RATE_DAILY","PERIOD"]
[354048056,1740204645223,-500.0,0.00011287,2]
[354048057,1740204645233,-500.0,0.00011287,2]
[354048058,1740204645246,-500.0,0.00011287,2]
[354048059,1740204645255,-500.0,0.00011287,2]
[354048060,1740204645264,-500.0,0.00011287,2]
[354048061,1740204645273,-182.42756135,0.00011287,2]
[354048062,1740204645282,-500.0,0.00011287,2]
[354048063,1740204645291,-500.0,0.00011287,2]
[354048064,1740204645301,-500.0,0.00011287,2]
[354048065,1740204645310,-500.0,0.00011287,2]
[354048066,1740204645319,-500.0,0.00011287,2]
[354048067,1740204645329,-500.0,0.00011287,2]
[354048069,1740204645338,-500.0,0.00011287,2]
[354048070,1740204645347,-500.0,0.00011287,2]
[354048071,1740204645356,-500.0,0.00011287,2]
[354048072,1740204645366,-500.0,0.00011287,2]
[354048073,1740204645375,-312.90546109,0.00011287,2]
[354048074,1740204645384,-500.0,0.00011287,2]
[354048075,1740204645393,-500.0,0.00011287,2]
[354048077,1740204645403,-500.0,0.00011287,2]
[354048078,1740204645413,-500.0,0.00011287,2]
[354048079,1740204645423,-2455.59,0.00011287,2]
[354048080,1740204645433,-500.0,0.00011287,2]
[354048081,1740204645442,-500.0,0.00011287,2]
[354048082,1740204645451,-500.0,0.00011287,2]
[354048083,1740204645461,-500.0,0.00011287,2]
[354048084,1740204645471,-500.0,0.00011287,2]
[354048085,1740204645481,-500.0,0.00011287,2]
[354048086,1740204645492,-1617.7,0.00011287,2]
[354048087,1740204645501,-500.0,0.00011287,2]
[354048088,1740204645511,-500.0,0.00011287,2]
[354048089,1740204645521,-500.0,0.00011287,2]
[354048090,1740204645533,-500.0,0.00011287,2]
[354048091,1740204645542,-517.71,0.00011287,2]
[354048092,1740204645552,-182.76678906,0.00011287,2]
[354048093,1740204645562,-927.42,0.00011287,2]
[354048094,1740204645571,-562.64,0.00011287,2]
[354048095,1740204645580,-500.0,0.00011287,2]
[354048096,1740204645590,-187.39782092,0.00011287,2]
[354048097,1740204645599,-500.0,0.00011287,2]
[354048098,1740204645610,-500.0,0.00011287,2]
[354048099,1740204645620,-500.0,0.00011287,2]
[354048100,1740204645630,-500.0,0.00011287,2]
[354048101,1740204645639,-500.0,0.00011287,2]
[354048102,1740204645648,-500.0,0.00011287,2]
[354048103,1740204645657,-500.0,0.00011287,2]
[354048104,1740204645667,-500.0,0.00011287,2]
[354048105,1740204645676,-500.0,0.00011287,2]
[354048106,1740204645686,-741.77289442,0.00011287,2]
[354048107,1740204645703,-508.27710558,0.00011287,2]
[354048108,1740204645711,-281.94076961,0.00011287,2]
[354048109,1740204645891,-500.0,0.00010958,2]
[354048110,1740204645901,-506.12,0.00010958,2]
[354048111,1740204645912,-500.0,0.00011041,2]
[354048112,1740204645922,-4.5981401,0.00011123,2]
[354048113,1740204646024,-495.4018599,0.00011123,2]
[354048114,1740204646033,-64.16395776,0.00011205,2]
[354048115,1740204646059,-435.83604224,0.00011205,2]
[354048116,1740204646068,-313.33917893,0.00011287,2]
[354048117,1740204646077,-500.0,0.00011287,2]
[354048118,1740204646086,-500.0,0.00011287,2]
[354048119,1740204646095,-500.0,0.00011287,2]
[354048120,1740204646104,-500.0,0.00011287,2]
[354048121,1740204646114,-186.00177099,0.00011287,2]
[354048122,1740204646125,-313.99822901,0.00011287,2]
[354048123,1740204646134,-399.25949427,0.00011287,2]
[354048124,1740204646156,-100.74050573,0.00011287,2]
[354048125,1740204646165,-153.1643995,0.00011287,2]
[354048126,1740204646176,-346.8356005,0.00011287,2]
[354048127,1740204646185,-301.46062194,0.00011287,2]
[354048128,1740204646407,-198.53937806,0.00011287,2]
[354048129,1740204646417,-500.0,0.00011287,2]
[354048130,1740204646427,-500.0,0.00011287,2]
[354048131,1740204646436,-500.0,0.00011287,2]
[354048132,1740204646445,-500.0,0.00011287,2]
[354048133,1740204646455,-500.0,0.00011287,2]
[354048134,1740204646464,-500.0,0.00011287,2]
[354048135,1740204646473,-500.0,0.00011287,2]
[354048136,1740204646483,-500.0,0.00011287,2]
[354048137,1740204646494,-500.0,0.00011287,2]
[354048138,1740204646503,-500.0,0.00011287,2]
[354048139,1740204646512,-500.0,0.00011287,2]
[354048140,1740204646522,-500.0,0.00011287,2]
[354048141,1740204646534,-166.4599576,0.00011287,2]
[354048142,1740204646543,-500.0,0.00011287,2]
[354048143,1740204646552,-548.86,0.00011287,2]
[354048144,1740204646561,-500.0,0.00011287,2]
[354048145,1740204646570,-500.0,0.00011287,2]
[354048146,1740204646579,-500.0,0.00011287,2]
[354048147,1740204646588,-500.0,0.00011287,2]
[354048148,1740204646597,-500.0,0.00011287,2]
[354048149,1740204646606,-500.0,0.00011287,2]
[354048150,1740204646615,-667.92,0.00011287,2]
[354048151,1740204646624,-500.0,0.00011287,2]
[354048152,1740204646633,-500.0,0.00011287,2]
[354048153,1740204646642,-500.0,0.00011287,2]
[354048154,1740204646652,-500.0,0.00011287,2]
[354048155,1740204646661,-500.0,0.00011287,2]
[354048156,1740204646670,-500.0,0.00011287,2]
[354048157,1740204646679,-2256.45,0.00011287,2]
[354048158,1740204646688,-587.77,0.00011287,2]
[354048159,1740204646697,-500.0,0.00011287,2]
[354048160,1740204646706,-853.48,0.00011287,2]
[354048161,1740204646715,-500.0,0.00011287,2]
[354048162,1740204646724,-500.0,0.00011287,2]
[354048163,1740204646733,-500.0,0.00011287,2]
[354048164,1740204646745,-500.0,0.00011287,2]
[354048165,1740204646754,-500.0,0.00011287,2]
[354048166,1740204646762,-500.0,0.00011287,2]
[354048167,1740204646771,-500.0,0.00011287,2]
[354048168,1740204646781,-500.0,0.00011287,2]
[354048169,1740204646790,-500.0,0.00011287,2]
[354048170,1740204646799,-500.0,0.00011287,2]
[354048171,1740204646808,-500.0,0.00011287,2]
[354048172,1740204646817,-875.95,0.00011287,2]
[354048173,1740204646827,-777.87,0.00011287,2]
[354048174,1740204646835,-500.0,0.00011287,2]
[354048175,1740204646844,-500.0,0.00011287,2]
[354048176,1740204646854,-500.0,0.00011287,2]
[354048177,1740204646863,-500.0,0.00011287,2]
[354048178,1740204646871,-521.34,0.00011287,2]
[354048179,1740204646880,-500.0,0.00011287,2]
[354048180,1740204646889,-568.33,0.00011287,2]
[354048181,1740204646898,-500.0,0.00011287,2]
[354048182,1740204646907,-573.34,0.00011287,2]
[354048183,1740204646918,-500.0,0.00011287,2]
[354048184,1740204646927,-500.0,0.00011287,2]
[354048185,1740204646937,-777.69,0.00011287,2]
[354048186,1740204646946,-500.0,0.00011287,2]
[354048187,1740204646955,-500.0,0.00011287,2]
[354048188,1740204646964,-566.46,0.00011287,2]
[354048189,1740204646973,-500.0,0.00011287,2]
[354048190,1740204646983,-500.0,0.00011287,2]
[354048191,1740204646993,-500.0,0.00011287,2]
[354048192,1740204647002,-500.0,0.00011287,2]
[354048193,1740204647011,-2000.0,0.00011293,4]
[354048194,1740204647020,-179.81402564,0.00011295,2]
[354048195,1740204647029,-150.0,0.00011301,2]
[354048196,1740204647038,-167.27,0.00011306,2]
[354048197,1740204647047,-179.81402564,0.00011308,2]
[354048198,1740204647056,-179.81402564,0.0001132,2]
[354048199,1740204647065,-179.81402564,0.00011333,2]
[354048200,1740204647075,-150.85268357,0.00011339,2]
[354048201,1740204647085,-500.0,0.00011339,2]
[354048202,1740204647094,-179.81402564,0.00011345,2]
[354048203,1740204647103,-179.81402564,0.00011357,2]
[354048204,1740204647112,-150.0,0.0001136,2]
[354048205,1740204647121,-150.0,0.0001136,2]
[354048206,1740204647131,-500.0,0.00011366,2]
[354048207,1740204647140,-500.0,0.00011366,2]
[354048208,1740204647149,-27613.31848491,0.00011368,2]
[354048209,1740204647158,-500.0,0.00011369,2]
[354048210,1740204647168,-500.0,0.00011369,2]
[354048211,1740204647176,-500.0,0.00011369,2]
[354048212,1740204647186,-500.0,0.00011369,2]
[354048213,1740204647195,-500.0,0.00011369,2]
[354048214,1740204647204,-500.0,0.00011369,2]
[354048215,1740204647214,-442.32315433,0.00011369,2]
[354048216,1740204647223,-224.21622017,0.00011369,2]
[354048217,1740204647233,-500.0,0.00011369,2]
[354048218,1740204647244,-500.0,0.00011369,2]
[354048219,1740204647253,-500.0,0.00011369,2]
[354048220,1740204647262,-500.0,0.00011369,2]
[354048221,1740204647272,-500.0,0.00011369,2]
[354048222,1740204647281,-500.0,0.00011369,2]
[354048223,1740204647291,-500.0,0.00011369,2]
[354048224,1740204647301,-500.0,0.00011369,2]
[354048225,1740204647310,-619.462385,0.00011369,2]
[354048226,1740204647319,-500.0,0.00011369,2]
[354048227,1740204647328,-500.0,0.00011369,2]
[354048228,1740204647338,-500.0,0.00011369,2]
[354048229,1740204647347,-708.193006,0.00011369,2]
[354048230,1740204647357,-500.0,0.00011369,2]
[354048231,1740204647366,-500.0,0.00011369,2]
[354048232,1740204647376,-500.0,0.00011369,2]
[354048233,1740204647385,-500.0,0.00011369,2]
[354048234,1740204647395,-500.0,0.00011369,2]
[354048235,1740204647406,-500.0,0.00011369,2]
[354048236,1740204647415,-500.0,0.00011369,2]
[354048237,1740204647425,-500.0,0.00011369,2]
[354048238,1740204647435,-500.0,0.00011369,2]
[354048239,1740204647444,-500.0,0.00011369,2]
[354048240,1740204647454,-500.0,0.00011369,2]
[354048241,1740204647463,-500.0,0.00011369,2]
[354048242,1740204647472,-500.0,0.00011369,2]
[354048243,1740204647481,-500.0,0.00011369,2]
[354048244,1740204647490,-170.45964538,0.00011369,2]
[354048245,1740204647500,-500.0,0.00011369,2]
[354048246,1740204647509,-500.0,0.00011369,2]
[354048247,1740204647518,-195.64511378,0.00011369,2]
[354048248,1740204647529,-344.83745162,0.00011369,2]
[354048249,1740204647539,-1401.50438809,0.00011369,2]
[354048250,1740204647552,-1054.08561191,0.00011369,2]
[354048251,1740204647561,-512.10956546,0.00011369,2]
[354048252,1740204647571,-14.27511219,0.00011369,2]
[354048253,1740204647582,-485.72488781,0.00011369,2]
[354048254,1740204647592,-319.7351122,0.00011369,2]
[354048255,1740204647603,-180.2648878,0.00011369,2]
[354048256,1740204647612,-500.0,0.00011369,2]
[354048257,1740204647622,-500.0,0.00011369,2]
[354048258,1740204647632,-500.0,0.00011369,2]
[354048259,1740204647641,-1617.7,0.00011369,2]
[354048260,1740204647650,-72.58041497,0.00011369,2]
[354048261,1740204647666,-427.41958503,0.00011369,2]
[354048262,1740204647675,-500.0,0.00011369,2]
[354048263,1740204647684,-500.0,0.00011369,2]
[354048264,1740204647693,-500.0,0.00011369,2]
[354048265,1740204647702,-517.71,0.00011369,2]
[354048266,1740204647711,-927.42,0.00011369,2]
[354048267,1740204647721,-562.64,0.00011369,2]
[354048268,1740204647730,-500.0,0.00011369,2]
[354048269,1740204647740,-500.0,0.00011369,2]
[354048270,1740204647749,-500.0,0.00011369,2]
[354048271,1740204647758,-500.0,0.00011369,2]
[354048272,1740204647768,-500.0,0.00011369,2]
[354048273,1740204647777,-294.31741155,0.00011369,2]
[354048274,1740204647787,-542.0903449,0.00011369,2]
[354048275,1740204647796,-500.0,0.00011369,2]
[354048276,1740204648000,-500.0,0.00011369,2]
[354048277,1740204648015,-494.92359603,0.00011369,2]
[354048278,1740204648025,-1250.05,0.00011369,2]
[354048279,1740204648035,-500.0,0.00011369,2]
[354048280,1740204648045,-500.0,0.00011369,2]
[354048281,1740204648055,-500.0,0.00011369,2]
[354048282,1740204648064,-500.0,0.00011369,2]
[354048283,1740204648074,-500.0,0.00011369,2]
[354048284,1740204648084,-500.0,0.00011369,2]
[354048285,1740204648093,-500.0,0.00011369,2]
[354048286,1740204648103,-500.0,0.00011369,2]
[354048287,1740204648112,-500.0,0.00011369,2]
[354048288,1740204648124,-500.0,0.00011369,2]
[354048289,1740204648133,-500.0,0.00011369,2]
[354048290,1740204648143,-500.0,0.00011369,2]
[354048291,1740204648153,-500.0,0.00011369,2]
[354048292,1740204648163,-214.34826081,0.00011369,2]
[354048293,1740204648172,-500.0,0.00011369,2]
[354048294,1740204648181,-627.26692609,0.00011369,2]
[354048295,1740204648190,-457.51422315,0.00011369,2]
[354048296,1740204648203,-42.48577685,0.00011369,2]
[354048297,1740204648212,-500.0,0.00011369,2]
[354048298,1740204648222,-500.0,0.00011369,2]
[354048299,1740204648233,-500.0,0.00011369,2]
[354048300,1740204648243,-548.86,0.00011369,2]
[354048301,1740204648254,-500.0,0.00011369,2]
[354048302,1740204648263,-500.0,0.00011369,2]
[354048303,1740204648273,-500.0,0.00011369,2]
[354048304,1740204648283,-500.0,0.00011369,2]
[354048305,1740204648292,-500.0,0.00011369,2]
[354048306,1740204648301,-500.0,0.00011369,2]
[354048307,1740204648311,-667.92,0.00011369,2]
[354048308,1740204648321,-500.0,0.00011369,2]
[354048309,1740204648330,-500.0,0.00011369,2]
[354048310,1740204648341,-500.0,0.00011369,2]
[354048311,1740204648352,-500.0,0.00011369,2]
[354048312,1740204648362,-500.0,0.00011369,2]
[354048313,1740204648372,-500.0,0.00011369,2]
[354048314,1740204648382,-2256.45,0.00011369,2]
[354048315,1740204648392,-587.77,0.00011369,2]
[354048316,1740204648402,-500.0,0.00011369,2]
[354048317,1740204648412,-853.48,0.00011369,2]
[354048318,1740204648422,-500.0,0.00011369,2]
[354048319,1740204648432,-500.0,0.00011369,2]
[354048320,1740204648441,-500.0,0.00011369,2]
[354048321,1740204648451,-500.0,0.00011369,2]
[354048322,1740204648460,-500.0,0.00011369,2]
[354048323,1740204648471,-500.0,0.00011369,2]
[354048324,1740204648480,-229.76048616,0.00011369,2]
[354048325,1740204648490,-500.0,0.00011369,2]
[354048326,1740204648500,-500.0,0.00011369,2]
[354048327,1740204648511,-500.0,0.00011369,2]
[354048328,1740204648521,-500.0,0.00011369,2]
[354048329,1740204648532,-875.95,0.00011369,2]
[354048330,1740204648542,-777.87,0.00011369,2]
[354048331,1740204648551,-500.0,0.00011369,2]
[354048332,1740204648561,-500.0,0.00011369,2]
[354048333,1740204648570,-500.0,0.00011369,2]
[354048334,1740204648580,-500.0,0.00011369,2]
[354048335,1740204648590,-521.34,0.00011369,2]
[354048336,1740204648599,-639.5460874,0.00011369,2]
[354048337,1740204648609,-568.33,0.00011369,2]
[354048338,1740204648619,-500.0,0.00011369,2]
[354048339,1740204648628,-573.34,0.00011369,2]
[354048340,1740204648638,-500.0,0.00011369,2]
[354048341,1740204648647,-500.0,0.00011369,2]
[354048342,1740204648656,-777.69,0.00011369,2]
[354048343,1740204648665,-500.0,0.00011369,2]
[354048344,1740204648675,-500.0,0.00011369,2]
[354048345,1740204648684,-566.46,0.00011369,2]
[354048346,1740204648693,-500.0,0.00011369,2]
[354048347,1740204648703,-500.0,0.00011369,2]
[354048348,1740204648712,-500.0,0.00011369,2]
[354048349,1740204648721,-500.0,0.00011369,2]
[354048350,1740204648729,-179.81402564,0.0001137,2]
[354048351,1740204648739,-179.81402564,0.00011382,2]
[354048352,1740204648748,-500.0,0.00011393,2]
[354048353,1740204648757,-500.0,0.00011393,2]
[354048354,1740204648766,-179.81402564,0.00011395,2]
[354048355,1740204648775,-169.35015456,0.000114,2]
[354048356,1740204648785,-366.92873025,0.000114,2]
[354048357,1740204648794,-1788.159425,0.00011403,2]
[354048358,1740204648803,-179.81402564,0.00011407,2]
[354048359,1740204648813,-179.81402564,0.0001142,2]
[354048360,1740204648822,-500.0,0.00011421,2]
[354048361,1740204648831,-500.0,0.00011421,2]
[354048362,1740204648840,-179.81402564,0.00011432,2]
[354048363,1740204648850,-179.81402564,0.00011445,2]
[354048364,1740204648859,-150.0,0.00011448,2]
[354048365,1740204648868,-150.0,0.00011448,2]
[354048366,1740204648877,-500.0,0.00011448,2]
[354048367,1740204648886,-500.0,0.00011448,2]
[354048368,1740204648895,-604.73,0.00011451,2]
[354048369,1740204648905,-500.0,0.00011452,2]
[354048370,1740204648914,-500.0,0.00011452,2]
[354048371,1740204648923,-500.0,0.00011452,2]
[354048372,1740204648932,-500.0,0.00011452,2]
[354048373,1740204648941,-500.0,0.00011452,2]
[354048374,1740204648950,-500.0,0.00011452,2]
[354048375,1740204648959,-500.0,0.00011452,2]
[354048376,1740204648969,-500.0,0.00011452,2]
[354048377,1740204648979,-500.0,0.00011452,2]
[354048378,1740204648988,-442.75056119,0.00011452,2]
[354048379,1740204649001,-356.90082765,0.00011452,2]
[354048380,1740204649010,-500.0,0.00011452,2]
[354048381,1740204649019,-274.46619112,0.00011452,2]
[354048382,1740204649029,-500.0,0.00011452,2]
[354048383,1740204649038,-619.462385,0.00011452,2]
[354048384,1740204649047,-267.22375985,0.00011452,2]
[354048385,1740204649057,-500.0,0.00011452,2]
[354048386,1740204649067,-346.80022529,0.00011452,2]
[354048387,1740204649076,-56.39523037,0.00011452,2]
[354048388,1740204835088,375.08,9.509e-05,2]
[354048389,1740204864422,562.62,9.509e-05,2]
[354048390,1740204906261,562.0,9.509e-05,2]
[354048391,1740204954502,777.0,0.00020136,120]
[354048392,1740205378326,1002.16,8.219e-05,2]
[354048393,1740205543136,494.01,8.767e-05,2]
[354048395,1740205553029,1357.11645385,6.94e-05,2]
[354048396,1740205564263,704.7979896,8e-05,2]
[354048404,1740205792598,-3700.0,0.0001,2]
[354048413,1740205831794,-300.0,9.999e-05,2]
[354048414,1740205831804,-3101.24565561,0.0001,2]
[354048416,1740205831813,-24551.30801833,0.0001,2]
[354048420,1740205831882,-366.18631718,0.0001,2]
[354048421,1740205831902,-163255.72646222,0.0001,2]
[354048422,1740205831921,-626.0,0.0001,2]
[354048423,1740205831932,-3518.7788077,0.0001,2]
[354048424,1740205831946,-1049.05504559,0.0001,2]
[354048425,1740205832077,-6233.85682058,0.0001,2]
[354048426,1740205832091,-35538.895624,0.0001,2]
[354048427,1740205832102,-388.59141856,0.0001,2]
[354048428,1740205832170,-67651.41952556,0.0001,2]
[354048429,1740205832182,-6088.61886519,0.0001,2]
[354048430,1740205832251,-12912.87301083,0.0001,2]
[354048431,1740205832262,-19825.70101284,0.0001,2]
[354048497,1740205839918,-1076.96000001,0.0001,2]
[354048498,1740205840082,-483.26,0.0001,2]
[354048499,1740205840166,-355.80047085,0.0001,2]
[354048748,1740205842806,-261.999964,0.0001,2]
[354048765,1740205842957,-539.50551785,0.0001,2]
[354048767,1740205842968,-1668.84497925,0.0001,2]
[354048769,1740205842979,-2319.31846589,0.0001,2]
[354048772,1740205842990,-83787.26407208,0.0001,2]
[354048774,1740205843001,-4105.83408949,0.0001,2]
[354048780,1740205843054,-758.57759602,0.0001,2]
[354048876,1740205845891,-679.40528476,0.0001,2]
[354048879,1740205930078,-2894.6017,9.9e-05,2]
[354048880,1740205930092,-2860.7966,9.9e-05,2]
[354048881,1740205930102,-1554.93764029,9.999e-05,2]
[354048882,1740205930111,-500.0,9.999e-05,2]
[354048883,1740205930121,-500.0,9.999e-05,2]
[354048884,1740205930130,-339.66405971,9.999e-05,2]
[354048886,1740206009121,-150.0,9.999e-05,2]
[354048887,1740206009141,-150.0,0.0001,2]
[354048888,1740206009152,-12700.0,0.0001,2]
[354048889,1740206066926,-300.0,9.999e-05,2]
[354048890,1740206066948,-300.0,0.0001,2]
[354048891,1740206066969,-3200.0,0.0001,2]
[354048892,1740206281190,12535.63288669,0.00020132,120]
[354048894,1740206476592,350.38201485,0.00011426,10]
[354048895,1740206746059,1057.04,8.219e-05,2]
[354048924,1740207032151,-150.0,9.671e-05,2]
[354048925,1740207032160,-3902.71513383,9.822e-05,2]
[354048926,1740207032735,-11306.83486617,9.822e-05,2]
[354048927,1740207032745,-188.91310429,9.832e-05,2]
[354048972,1740207038033,-226.59689571,9.832e-05,2]
[354048973,1740207038043,-200.0,9.842e-05,2]
[354048974,1740207038053,-150.0,9.894e-05,2]
[354048975,1740207038063,-2149.29556205,9.9e-05,2]
[354048976,1740207038072,-150.0,9.973e-05,2]
[354048977,1740207038082,-170.62857642,9.973e-05,2]
[354048978,1740207038092,-1000.0,9.974e-05,2]
[354048979,1740207038101,-4694.11597024,0.0001,2]
[354049122,1740207040487,-3294.00533901,0.0001,2]
[354049124,1740207040499,-4927.23480549,0.0001,2]
[354049127,1740207040514,-607.46602351,0.0001,2]
[354049459,1740207043033,-31085.34689207,0.0001,2]
[354049462,1740207043042,-1495.12206,0.0001,2]
[354049465,1740207043052,-500.0,0.00010008,2]
[354049468,1740207043061,-566.86,0.00010017,2]
[354049471,1740207043071,-150.99,0.00010017,2]
[354049474,1740207043080,-150.99,0.00010017,2]
[354049476,1740207043089,-299.99,0.00010017,2]
[354049478,1740207043098,-9999.99,0.00010017,2]
[354049480,1740207043108,-150.0,0.00010088,2]
[354049482,1740207043118,-158.08,0.00010107,2]
[354049484,1740207043127,-1495.12206,0.0001014,2]
[354049486,1740207043137,-150.0,0.00010276,2]
[354049488,1740207043146,-1495.12207,0.0001029,2]
[354049490,1740207043156,-150.0,0.00010319,2]
[354049492,1740207043166,-150.0,0.0001043,2]
[354049494,1740207043175,-1495.12206,0.0001045,2]
[354049496,1740207043184,-150.0,0.00010453,2]
[354049498,1740207043193,-150.0,0.00010467,2]
[354049500,1740207043203,-1057.04,0.00010469,2]
[354049502,1740207043212,-150.0,0.00010606,2]
[354049504,1740207043222,-1495.12207,0.0001061,2]
[354049506,1740207043232,-250.0,0.0001062,2]
[354049508,1740207043241,-150.0,0.00010728,2]
[354049510,1740207043252,-1495.12206,0.0001077,2]
[354049512,1740207043261,-150.0,0.00010774,2]
[354049514,1740207043271,-150.0,0.00010798,2]
[354049516,1740207043281,-150.0,0.00010799,2]
[354049518,1740207043290,-2000.0,0.000108,3]
[354049520,1740207043299,-150.0,0.00010829,2]
[354049522,1740207043308,-5755.3983,0.00010858,2]
[354049524,1740207043317,-150.0,0.000109,2]
[354049525,1740207043326,-4100.0,0.000109,3]
[354049528,1740207043339,-206.4500408,0.000109,2]
[354049529,1740207043348,-150.0,0.00010924,2]
[354049531,1740207043357,-500.0,0.00010958,2]
[354049533,1740207043367,-500.0,0.00010958,2]
[354049535,1740207043376,-621.62256458,0.00010958,2]
[354049537,1740207043387,-501.30819064,0.00010958,2]
[354049539,1740207043396,-503.32294385,0.00010958,2]
[354049541,1740207043405,-176.99847895,0.00010958,2]
[354049543,1740207043415,-500.0,0.00010999,2]
[354049545,1740207043425,-1000.0,0.00011,2]
[354049547,1740207043434,-2342.78011401,0.00011,2]
[354049549,1740207043444,-500.0,0.00011,2]
[354049551,1740207043453,-150.0,0.00011049,2]
[354049553,1740207043462,-415.51,0.00011061,2]
[354049555,1740207043472,-150.0,0.00011096,2]
[354049557,1740207043481,-150.0,0.00011096,2]
[354049559,1740207043490,-150.0,0.00011096,2]
[354049561,1740207043500,-150.0,0.00011096,2]
[354049563,1740207043509,-1028.04811086,0.00011099,2]
[354049566,1740207043519,-6965.3733,0.00011105,2]
[354049569,1740207043528,-150.0,0.00011111,2]
[354049572,1740207043538,-526.971365,0.00011122,2]
[354049575,1740207043547,-500.0,0.00011122,2]
[354049577,1740207043556,-500.0,0.00011122,2]
[354049579,1740207043566,-500.0,0.00011122,2]
[354049581,1740207043576,-500.0,0.00011122,2]
[354049583,1740207043585,-500.0,0.00011122,2]
[354049585,1740207043595,-500.0,0.00011122,2]
[354049587,1740207043604,-500.0,0.00011122,2]
[354049589,1740207043613,-500.0,0.00011122,2]
[354049591,1740207043622,-500.0,0.00011122,2]
[354049593,1740207043631,-500.0,0.00011122,2]
[354049594,1740207043640,-500.0,0.00011122,2]
[354049596,1740207043650,-500.0,0.00011122,2]
[354049598,1740207043659,-500.0,0.00011122,2]
[354049600,1740207043668,-342.50100463,0.00011122,2]
[354049602,1740207043678,-500.0,0.00011122,2]
[354049604,1740207043687,-500.0,0.00011122,2]
[354049606,1740207043696,-500.0,0.00011122,2]
[354049608,1740207043705,-500.0,0.00011122,2]
[354049610,1740207043715,-500.0,0.00011122,2]
[354049612,1740207043724,-500.0,0.00011122,2]
[354049614,1740207043733,-500.0,0.00011122,2]
[354049616,1740207043742,-500.0,0.00011122,2]
[354049618,1740207043751,-500.0,0.00011122,2]
[354049620,1740207043761,-500.0,0.00011122,2]
[354049622,1740207043770,-500.0,0.00011122,2]
[354049624,1740207043779,-500.0,0.00011122,2]
[354049626,1740207043788,-500.0,0.00011122,2]
[354049628,1740207043797,-500.0,0.00011122,2]
[354049630,1740207043807,-500.0,0.00011122,2]
[354049632,1740207043816,-500.0,0.00011122,2]
[354049634,1740207043825,-500.0,0.00011122,2]
[354049636,1740207043835,-500.0,0.00011122,2]
[354049638,1740207043844,-500.0,0.00011122,2]
[354049640,1740207043853,-500.0,0.00011122,2]
[354049642,1740207043862,-500.0,0.00011122,2]
[354049644,1740207043871,-500.0,0.00011122,2]
[354049646,1740207043880,-500.0,0.00011122,2]
[354049648,1740207043890,-500.0,0.00011122,2]
[354049650,1740207043899,-500.0,0.00011122,2]
[354049652,1740207043909,-500.0,0.00011122,2]
[354049654,1740207043918,-500.0,0.00011122,2]
[354049656,1740207043929,-500.0,0.00011122,2]
[354049658,1740207043938,-198.57588279,0.00011122,2]
[354049660,1740207043947,-500.0,0.00011122,2]
[354049662,1740207043957,-506.19,0.00011122,2]
[354049664,1740207043966,-589.75,0.00011122,2]
[354049666,1740207043976,-514.47,0.00011122,2]
[354049668,1740207043985,-500.0,0.00011122,2]
[354049670,1740207043994,-500.0,0.00011122,2]
[354049672,1740207044005,-500.0,0.00011122,2]
[354049674,1740207044014,-500.0,0.00011122,2]